fUST/lending_fUST_20250725
["ID","MTS","AMOUNT","RATE_DAILY","PERIOD"]
[374624787,1753384264295,-946.41,0.00023189,2]
[374624788,1753384264304,-499.36,0.00023189,2]
[374624789,1753384264313,-2648.97,0.00023189,2]
[374624790,1753384264323,-738.92,0.00023189,2]
[374624791,1753384264332,-151.0,0.0002319,7]
[374624792,1753384264341,-151.0,0.0002319,7]
[374624793,1753384264351,-3000.0,0.0002319,2]
[374624794,1753384264360,-151.303853,0.000232,7]
[374624795,1753384264370,-151.0,0.000232,7]
[374624796,1753384264379,-151.0,0.000232,7]
[374624797,1753384264388,-275.33301,0.000232,7]
[374624798,1753384264397,-151.242856,0.000232,7]
[374624799,1753384264407,-3000.0,0.000232,2]
[374624800,1753384264416,-3000.0,0.0002321,2]
[374624801,1753384264425,-151.0,0.0002321,7]
[374624802,1753384264435,-849.243154,0.0002321,7]
[374624803,1753384264445,-849.243154,0.0002321,7]
[374624804,1753384264455,-560.0,0.0002321,2]
[374624805,1753384264465,-407.0,0.00023218,2]
[374624806,1753384264475,-421.197,0.00023218,2]
[374624807,1753384264484,-3000.0,0.0002322,2]
[374624808,1753384264496,-3000.0,0.0002323,2]
[374624809,1753384264507,-3000.0,0.0002324,2]
[374624810,1753384264516,-3000.0,0.0002325,2]
[374624811,1753384264525,-3000.0,0.0002326,2]
[374624812,1753384264534,-3000.0,0.0002327,2]
[374624813,1753384264547,-587.0,0.00023279,2]
[374624814,1753384264556,-162.0,0.00023279,2]
[374624815,1753384264566,-3000.0,0.0002328,2]
[374624816,1753384264575,-534.88,0.00023281,4]
[374624817,1753384264585,-151.0,0.00023283,7]
[374624818,1753384264595,-76562.8406976,0.00023283,2]
[374624819,1753384264608,-201.62407296,0.00023288,2]
[374624820,1753384264617,-151.0,0.0002329,7]
[374624821,1753384264627,-151.0,0.0002329,7]
[374624822,1753384264637,-151.0,0.0002329,7]
[374624823,1753384264649,-3000.0,0.0002329,2]
[374624824,1753384264659,-3000.0,0.000233,2]
[374624825,1753384264669,-151.0,0.000233,7]
[374624826,1753384264680,-473.158341,0.000233,7]
[374624827,1753384264692,-473.158341,0.000233,7]
[374624828,1753384264702,-151.0,0.000233,7]
[374624829,1753384264712,-151.0,0.000233,7]
[374624830,1753384264724,-151.0,0.000233,7]
[374624831,1753384264735,-151.0,0.000233,7]
[374624832,1753384264746,-153.013182,0.000233,7]
[374624833,1753384264757,-151.0,0.000233,7]
[374624834,1753384264767,-285.76026,0.000233,7]
[374624835,1753384264776,-339.296401,0.000233,7]
[374624836,1753384264786,-285.76026,0.000233,7]
[374624837,1753384264799,-151.0,0.000233,7]
[374624838,1753384264808,-151.0,0.000233,7]
[374624839,1753384264817,-153.701075,0.00023302,6]
[374624840,1753384264827,-3000.0,0.0002331,2]
[374624841,1753384264837,-527.21,0.0002331,6]
[374624842,1753384264847,-523.88,0.00023314,5]
[374624843,1753384264857,-3000.0,0.0002332,2]
[374624844,1753384264866,-1042.18048329,0.00023325,2]
[374624845,1753384264877,-3000.0,0.0002333,2]
[374624846,1753384264886,-151.0,0.0002334,7]
[374624847,1753384264895,-151.0,0.0002334,7]
[374624848,1753384264905,-164.352872,0.0002334,7]
[374624849,1753384264915,-3000.0,0.0002334,2]
[374624850,1753384264925,-4306.35562987,0.00023348,9]
[374624851,1753384264934,-3000.0,0.0002335,2]
[374624852,1753384264944,-25000.0,0.00023356,2]
[374624853,1753384264954,-3000.0,0.0002336,2]
[374624854,1753384264964,-3000.0,0.0002337,2]
[374624855,1753384264973,-3000.0,0.0002338,2]
[374624856,1753384264983,-3000.0,0.0002339,2]
[374624857,1753384264993,-978.83,0.000234,7]
[374624858,1753384265003,-1126.60340077,0.000234,2]
[374624859,1753384265013,-151.0,0.000234,7]
[374624860,1753384265023,-151.0,0.000234,7]
[374624861,1753384265033,-183.586108,0.000234,7]
[374624862,1753384265045,-3000.0,0.000234,2]
[374624863,1753384265054,-172.7106,0.000234,7]
[374624864,1753384265066,-195.781739,0.000234,7]
[374624865,1753384265075,-195.781739,0.000234,7]
[374624866,1753384265086,-151.0,0.00023405,7]
[374624867,1753384265096,-151.0,0.00023405,7]
[374624868,1753384265106,-1048.42097041,0.00023408,2]
[374624869,1753384265115,-3000.0,0.0002341,2]
[374624870,1753384265125,-527.21,0.0002341,2]
[374624871,1753384265135,-523.88,0.00023414,6]
[374624872,1753384265145,-3000.0,0.0002342,2]
[374624873,1753384265154,-4636.115502,0.0002343,2]
[374624874,1753384265164,-151.0,0.00023463,7]
[374624875,1753384265174,-151.0,0.00023463,7]
[374624876,1753384265183,-151.0,0.00023463,7]
[374624877,1753384265193,-151.0,0.00023463,7]
[374624878,1753384265203,-151.0,0.00023463,7]
[374624879,1753384265212,-151.0,0.00023463,7]
[374624880,1753384265222,-151.0,0.00023463,7]
[374624881,1753384265232,-151.0,0.00023463,7]
[374624882,1753384265241,-151.0,0.00023463,7]
[374624883,1753384265250,-163.055195,0.00023463,7]
[374624884,1753384265260,-202.24641,0.00023463,7]
[374624885,1753384265269,-161.50139,0.00023463,7]
[374624886,1753384265278,-256.317287,0.00023463,7]
[374624887,1753384265288,-256.317287,0.00023463,7]
[374624888,1753384265299,-151.0,0.00023463,7]
[374624889,1753384265308,-151.0,0.00023463,7]
[374624890,1753384265318,-1245.07,0.00023463,2]
[374624891,1753384265327,-877.44,0.00023463,2]
[374624892,1753384265337,-471.1,0.00023463,2]
[374624893,1753384265346,-864.25,0.00023463,2]
[374624894,1753384265355,-151.0,0.00023463,7]
[374624895,1753384265364,-460.0,0.00023463,2]
[374624896,1753384265374,-553.18,0.00023463,2]
[374624897,1753384265383,-187.948996,0.00023463,7]
[374624898,1753384265393,-460.0,0.00023463,2]
[374624899,1753384265403,-465.64,0.00023463,2]
[374624900,1753384265412,-151.0,0.00023463,7]
[374624901,1753384265421,-1113.47,0.00023463,2]
[374624902,1753384265430,-480.73,0.00023463,2]
[374624903,1753384265439,-461.31,0.00023463,2]
[374624904,1753384265448,-433.585009,0.00023463,7]
[374624905,1753384265458,-433.585009,0.00023463,7]
[374624906,1753384265467,-460.0,0.00023463,2]
[374624907,1753384265573,-151.0,0.00023463,7]
[374624908,1753384265582,-510.44,0.00023463,2]
[374624909,1753384265592,-460.0,0.00023463,2]
[374624910,1753384265602,-464.72,0.00023463,2]
[374624911,1753384265611,-151.0,0.00023463,7]
[374624912,1753384265621,-246.557261,0.00023463,7]
[374624913,1753384265632,-920.18,0.00023463,2]
[374624914,1753384265642,-246.557261,0.00023463,7]
[374624915,1753384265654,-3132.28,0.00023463,2]
[374624916,1753384265669,-265.825794,0.00023463,7]
[374624917,1753384265680,-265.825794,0.00023463,7]
[374624918,1753384265691,-3148.8,0.00023463,2]
[374624919,1753384265703,-1325.74,0.00023463,2]
[374624920,1753384265713,-801.02,0.00023463,2]
[374624921,1753384265723,-194.526971,0.00023463,7]
[374624922,1753384265737,-1262.05,0.00023463,2]
[374624923,1753384265747,-194.526971,0.00023463,7]
[374624924,1753384265758,-521.23345269,0.00023463,2]
[374624925,1753384265769,-610.09,0.00023463,2]
[374624926,1753384265779,-2655.55,0.00023463,2]
[374624927,1753384265791,-872.2,0.00023463,2]
[374624928,1753384265802,-460.0,0.00023463,2]
[374624929,1753384265810,-4546.8,0.00023463,2]
[374624930,1753384265820,-151.0,0.00023463,7]
[374624931,1753384265829,-2803.82,0.00023463,2]
[374624932,1753384265838,-838.8,0.00023463,2]
[374624933,1753384265848,-684.53,0.00023463,2]
[374624934,1753384265857,-2888.36,0.00023463,2]
[374624935,1753384265867,-1998.660854,0.00023463,7]
[374624936,1753384265876,-166.050408,0.00023463,7]
[374624937,1753384265885,-1998.660854,0.00023463,7]
[374624938,1753384265894,-460.0,0.00023463,2]
[374624939,1753384265904,-166.050408,0.00023463,7]
[374624940,1753384265914,-1671.5,0.00023463,2]
[374624941,1753384265926,-1152.42,0.00023463,2]
[374624942,1753384265935,-1006.82,0.00023463,2]
[374624943,1753384265944,-1310.29,0.00023463,2]
[374624944,1753384265953,-460.0,0.00023463,2]
[374624945,1753384265962,-460.0,0.00023463,2]
[374624946,1753384265971,-151.0,0.00023463,7]
[374624947,1753384265980,-580.47,0.00023463,2]
[374624948,1753384265990,-2883.24,0.00023463,2]
[374624949,1753384265999,-753.75,0.00023463,2]
[374624950,1753384266008,-987.14,0.00023463,2]
[374624951,1753384266018,-183.616142,0.00023463,7]
[374624952,1753384266027,-663.42,0.00023463,2]
[374624953,1753384266036,-183.616142,0.00023463,7]
[374624954,1753384266047,-894.42,0.00023463,2]
[374624955,1753384266056,-767.36,0.00023463,2]
[374624956,1753384266065,-662.47,0.00023463,2]
[374624957,1753384266075,-320.08731385,0.00023463,2]
[374624958,1753384266085,-360.138995,0.00023463,7]
[374624959,1753384266094,-151.0,0.00023463,7]
[374624960,1753384266103,-3602.07,0.00023463,2]
[374624961,1753384266113,-151.0,0.00023463,7]
[374624962,1753384266122,-360.139004,0.00023463,7]
[374624963,1753384266133,-499.28,0.00023463,2]
[374624964,1753384266143,-858.77,0.00023463,2]
[374624965,1753384266153,-526.29,0.00023463,2]
[374624966,1753384266162,-5901.46,0.00023463,2]
[374624967,1753384266171,-1225.72,0.00023463,2]
[374624968,1753384266181,-460.0,0.00023463,2]
[374624969,1753384266190,-3762.69,0.00023463,2]
[374624970,1753384266200,-1125.09,0.00023463,2]
[374624971,1753384266210,-460.0,0.00023463,2]
[374624972,1753384266220,-946.17,0.00023463,2]
[374624973,1753384266230,-1815.56,0.00023463,2]
[374624974,1753384266239,-1612.68,0.00023463,2]
[374624975,1753384266249,-5542.35,0.00023463,2]
[374624976,1753384266259,-1315.25,0.00023463,2]
[374624977,1753384266269,-522.07,0.00023463,2]
[374624978,1753384266279,-5162.43,0.00023463,2]
[374624979,1753384266288,-460.0,0.00023463,2]
[374624980,1753384266301,-946.41,0.00023463,2]
[374624981,1753384266310,-499.36,0.00023463,2]
[374624982,1753384266319,-738.92,0.00023463,2]
[374624983,1753384266328,-2648.97,0.00023463,2]
[374624984,1753384266338,-151.0,0.00023464,7]
[374624985,1753384266347,-153.346447,0.00023464,7]
[374624986,1753384266357,-151.0,0.00023464,7]
[374624987,1753384266367,-151.0,0.00023465,7]
[374624988,1753384266376,-151.0,0.00023465,7]
[374624989,1753384266387,-337.09095,0.00023465,7]
[374624990,1753384266396,-337.09095,0.00023465,7]
[374624991,1753384266407,-5888.0,0.00023465,2]
[374624992,1753384266416,-350.0,0.00023468,2]
[374624993,1753384266426,-5000.0,0.00023483,3]
[374624994,1753384266436,-4000.0,0.00023508,2]
[374624995,1753384266446,-527.22,0.0002351,5]
[374624996,1753384266455,-523.88,0.00023514,3]
[374624997,1753384266465,-4306.35562987,0.00023521,9]
[374624998,1753384266474,-151.0,0.00023521,7]
[374624999,1753384266483,-211.147045,0.00023521,7]
[374625000,1753384266494,-211.147045,0.00023521,7]
[374625001,1753384266503,-6319.66384173,0.00023523,2]
[374625002,1753384266512,-166.67,0.00023539,2]
[374625003,1753384266522,-153.701075,0.00023552,8]
[374625004,1753384266530,-2058.44,0.00023586,2]
[374625005,1753384266539,-736.1161986,0.00023589,2]
[374625006,1753384266551,-1540.36,0.000236,7]
[374625007,1753384266561,-523.88,0.00023614,7]
[374625008,1753384266570,-151.0,0.00023679,6]
[374625009,1753384266579,-151.0,0.00023681,7]
[374625010,1753384266590,-151.0,0.00023681,7]
[374625011,1753384266601,-160.579338,0.00023681,7]
[374625012,1753384266611,-151.0,0.00023681,7]
[374625013,1753384266622,-151.0,0.00023681,7]
[374625014,1753384266632,-234.761685,0.00023681,7]
[374625015,1753384266643,-285.76026,0.00023681,7]
[374625016,1753384266656,-339.296401,0.00023681,7]
[374625017,1753384266670,-285.76026,0.00023681,7]
[374625018,1753384266682,-151.0,0.00023681,7]
[374625019,1753384266693,-151.0,0.00023681,7]
[374625020,1753384266713,-849.243154,0.00023681,7]
[374625021,1753384266724,-849.243154,0.00023681,7]
[374625022,1753384266743,-168.0,0.00023681,2]
[374625023,1753384266754,-4306.35562987,0.00023693,9]
[374625024,1753384266764,-151.0,0.0002371,7]
[374625025,1753384266775,-151.0,0.0002371,7]
[374625026,1753384266786,-523.88,0.00023714,2]
[374625027,1753384266798,-151.0,0.00023721,7]
[374625028,1753384266808,-1245.07,0.00023737,2]
[374625029,1753384266817,-877.44,0.00023737,2]
[374625030,1753384266827,-864.25,0.00023737,2]
[374625031,1753384266836,-460.0,0.00023737,2]
[374625032,1753384266846,-553.18,0.00023737,2]
[374625033,1753384266855,-460.0,0.00023737,2]
[374625034,1753384266865,-465.64,0.00023737,2]
[374625035,1753384266875,-1113.47,0.00023737,2]
[374625036,1753384266884,-480.73,0.00023737,2]
[374625037,1753384266893,-461.31,0.00023737,2]
[374625038,1753384266903,-460.0,0.00023737,2]
[374625039,1753384266912,-510.44,0.00023737,2]
[374625040,1753384266921,-460.0,0.00023737,2]
[374625041,1753384266930,-464.72,0.00023737,2]
[374625042,1753384266939,-920.18,0.00023737,2]
[374625043,1753384266948,-3132.28,0.00023737,2]
[374625044,1753384266957,-3148.8,0.00023737,2]
[374625045,1753384266966,-1325.74,0.00023737,2]
[374625046,1753384266975,-801.02,0.00023737,2]
[374625047,1753384266984,-1262.05,0.00023737,2]
[374625048,1753384266993,-610.09,0.00023737,2]
[374625049,1753384267002,-2655.55,0.00023737,2]
[374625050,1753384267011,-872.2,0.00023737,2]
[374625051,1753384267020,-460.0,0.00023737,2]
[374625052,1753384267030,-4546.8,0.00023737,2]
[374625053,1753384267040,-2803.82,0.00023737,2]
[374625054,1753384267050,-838.8,0.00023737,2]
[374625055,1753384267060,-684.53,0.00023737,2]
[374625056,1753384267070,-2888.36,0.00023737,2]
[374625057,1753384267079,-460.0,0.00023737,2]
[374625058,1753384267089,-1671.5,0.00023737,2]
[374625059,1753384267099,-1152.42,0.00023737,2]
[374625060,1753384267109,-1006.82,0.00023737,2]
[374625061,1753384267119,-1310.29,0.00023737,2]
[374625062,1753384267128,-460.0,0.00023737,2]
[374625063,1753384267138,-460.0,0.00023737,2]
[374625064,1753384267149,-580.47,0.00023737,2]
[374625065,1753384267159,-2883.24,0.00023737,2]
[374625066,1753384267170,-753.75,0.00023737,2]
[374625067,1753384267179,-987.14,0.00023737,2]
[374625068,1753384267190,-663.42,0.00023737,2]
[374625069,1753384267198,-894.42,0.00023737,2]
[374625070,1753384267208,-767.36,0.00023737,2]
[374625071,1753384267217,-662.47,0.00023737,2]
[374625072,1753384267228,-3602.07,0.00023737,2]
[374625073,1753384267239,-499.28,0.00023737,2]
[374625074,1753384267249,-858.77,0.00023737,2]
[374625075,1753384267259,-526.29,0.00023737,2]
[374625076,1753384267268,-5901.46,0.00023737,2]
[374625077,1753384267278,-1225.72,0.00023737,2]
[374625078,1753384267288,-460.0,0.00023737,2]
[374625079,1753384267298,-3762.69,0.00023737,2]
[374625080,1753384267309,-1125.09,0.00023737,2]
[374625081,1753384267319,-460.0,0.00023737,2]
[374625082,1753384267330,-946.17,0.00023737,2]
[374625083,1753384267341,-1815.56,0.00023737,2]
[374625084,1753384267351,-1612.68,0.00023737,2]
[374625085,1753384267360,-5542.35,0.00023737,2]
[374625086,1753384267372,-1315.25,0.00023737,2]
[374625087,1753384267382,-522.07,0.00023737,2]
[374625088,1753384267391,-5162.43,0.00023737,2]
[374625089,1753384267401,-460.0,0.00023737,2]
[374625090,1753384267410,-946.41,0.00023737,2]
[374625091,1753384267419,-499.36,0.00023737,2]
[374625092,1753384267429,-738.92,0.00023737,2]
[374625093,1753384267439,-2648.97,0.00023737,2]
[374625094,1753384267448,-153.701075,0.00023747,7]
[374625095,1753384267457,-660.0,0.00023758,2]
[374625096,1753384267466,-153.701075,0.0002377,2]
[374625097,1753384267477,-150.14227199,0.00023773,2]
[374625098,1753384267487,-3198.96,0.000238,7]
[374625099,1753384267497,-38725.13,0.000238,2]
[374625100,1753384267507,-151.0,0.0002381,7]
[374625101,1753384267517,-151.0,0.0002381,7]
[374625102,1753384267527,-182.9097,0.0002381,7]
[374625103,1753384267538,-150.0,0.0002381,2]
[374625104,1753384267548,-523.88,0.00023814,7]
[374625105,1753384267558,-224.048,0.00023848,2]
[374625106,1753384267567,-150.57,0.00023848,2]
[374625107,1753384267577,-150.0,0.00023848,2]
[374625108,1753384267587,-250.0,0.00023848,2]
[374625109,1753384267596,-244.07,0.00023848,2]
[374625110,1753384267605,-648.0,0.00023848,2]
[374625111,1753384267614,-2157.0,0.00023848,2]
[374625112,1753384267623,-969.0,0.00023848,2]
[374625113,1753384267633,-4306.35562987,0.00023866,10]
[374625114,1753384267642,-153.701075,0.00023869,6]
[374625115,1753384267652,-643.0,0.000239,2]
[374625116,1753384267663,-903.38503609,0.000239,2]
[374625117,1753384267672,-271.0,0.00023903,2]
[374625118,1753384267682,-25000.0,0.00023904,2]
[374625119,1753384267691,-153.701075,0.00023912,8]
[374625120,1753384267702,-523.88,0.00023914,2]
[374625121,1753384267711,-6319.66384173,0.00023934,2]
[374625122,1753384267720,-151.0,0.0002399,6]
[374625123,1753384267732,-215.88777038,0.00024,7]
[374625124,1753384267742,-160.0,0.00024,7]
[374625125,1753384267751,-433.585009,0.00024,7]
[374625126,1753384267761,-433.585009,0.00024,7]
[374625127,1753384267770,-307.2601571,0.00024,2]
[374625128,1753384267779,-160.0,0.00024,7]
[374625129,1753384267788,-1998.660854,0.00024,7]
[374625130,1753384267798,-166.050408,0.00024,7]
[374625131,1753384267807,-1998.660854,0.00024,7]
[374625132,1753384267817,-166.050412,0.00024,7]
[374625133,1753384267828,-183.616142,0.00024,7]
[374625134,1753384267838,-183.616138,0.00024,7]
[374625135,1753384267848,-1500.0,0.00024006,2]
[374625136,1753384267858,-151.0,0.00024011,7]
[374625137,1753384267868,-151.0,0.00024011,7]
[374625138,1753384267878,-151.0,0.00024011,7]
[374625139,1753384267887,-183.586108,0.00024011,7]
[374625140,1753384267896,-172.7106,0.00024011,7]
[374625141,1753384267905,-195.781739,0.00024011,7]
[374625142,1753384267915,-195.781739,0.00024011,7]
[374625143,1753384267923,-151.0,0.00024011,7]
[374625144,1753384267932,-473.158341,0.00024011,7]
[374625145,1753384267942,-473.158341,0.00024011,7]
[374625146,1753384267951,-1245.07,0.00024011,2]
[374625147,1753384267960,-877.44,0.00024011,2]
[374625148,1753384267970,-864.25,0.00024011,2]
[374625149,1753384267980,-199.635796,0.00024011,7]
[374625150,1753384267991,-460.0,0.00024011,2]
[374625151,1753384268000,-553.18,0.00024011,2]
[374625152,1753384268108,-493.61833604,0.00024011,2]
[374625153,1753384268118,-465.64,0.00024011,2]
[374625154,1753384268128,-1113.47,0.00024011,2]
[374625155,1753384268137,-461.31,0.00024011,2]
[374625156,1753384268147,-480.73,0.00024011,2]
[374625157,1753384268157,-460.0,0.00024011,2]
[374625158,1753384268166,-161.268,0.00024011,7]
[374625159,1753384268176,-510.44,0.00024011,2]
[374625160,1753384268186,-460.0,0.00024011,2]
[374625161,1753384268195,-464.72,0.00024011,2]
[374625162,1753384268205,-151.0,0.00024011,7]
[374625163,1753384268214,-246.557261,0.00024011,7]
[374625164,1753384268224,-920.18,0.00024011,2]
[374625165,1753384268233,-246.557261,0.00024011,7]
[374625166,1753384268243,-3132.28,0.00024011,2]
[374625167,1753384268253,-265.825794,0.00024011,7]
[374625168,1753384268263,-265.825794,0.00024011,7]
[374625169,1753384268272,-3148.8,0.00024011,2]
[374625170,1753384268283,-1325.74,0.00024011,2]
[374625171,1753384268292,-801.02,0.00024011,2]
[374625172,1753384268303,-194.526971,0.00024011,7]
[374625173,1753384268312,-1262.05,0.00024011,2]
[374625174,1753384268322,-194.526971,0.00024011,7]
[374625175,1753384268331,-610.09,0.00024011,2]
[374625176,1753384268341,-2655.55,0.00024011,2]
[374625177,1753384268350,-872.2,0.00024011,2]
[374625178,1753384268360,-460.0,0.00024011,2]
[374625179,1753384268370,-4546.8,0.00024011,2]
[374625180,1753384268379,-151.0,0.00024011,7]
[374625181,1753384268389,-2803.82,0.00024011,2]
[374625182,1753384268398,-838.8,0.00024011,2]
[374625183,1753384268407,-684.53,0.00024011,2]
[374625184,1753384268416,-2888.36,0.00024011,2]
[374625185,1753384268425,-460.0,0.00024011,2]
[374625186,1753384268435,-1671.5,0.00024011,2]
[374625187,1753384268444,-1152.42,0.00024011,2]
[374625188,1753384268453,-1006.82,0.00024011,2]
[374625189,1753384268463,-1310.29,0.00024011,2]
[374625190,1753384268472,-460.0,0.00024011,2]
[374625191,1753384268481,-460.0,0.00024011,2]
[374625192,1753384268491,-151.0,0.00024011,7]
[374625193,1753384268501,-580.47,0.00024011,2]
[374625194,1753384268510,-2883.24,0.00024011,2]
[374625195,1753384268519,-753.75,0.00024011,2]
[374625196,1753384268529,-987.14,0.00024011,2]
[374625197,1753384268539,-663.42,0.00024011,2]
[374625198,1753384268551,-894.42,0.00024011,2]
[374625199,1753384268561,-662.47,0.00024011,2]
[374625200,1753384268570,-767.36,0.00024011,2]
[374625201,1753384268579,-151.0,0.00024011,7]
[374625202,1753384268589,-3602.07,0.00024011,2]
[374625203,1753384268599,-499.28,0.00024011,2]
[374625204,1753384268608,-858.77,0.00024011,2]
[374625205,1753384268617,-526.29,0.00024011,2]
[374625206,1753384268627,-5901.46,0.00024011,2]
[374625207,1753384268636,-1225.72,0.00024011,2]
[374625208,1753384268646,-460.0,0.00024011,2]
[374625209,1753384268658,-3762.69,0.00024011,2]
[374625210,1753384268668,-1125.09,0.00024011,2]
[374625211,1753384268677,-460.0,0.00024011,2]
[374625212,1753384268687,-946.17,0.00024011,2]
[374625213,1753384268697,-1815.56,0.00024011,2]
[374625214,1753384268707,-1612.68,0.00024011,2]
[374625215,1753384268716,-5542.35,0.00024011,2]
[374625216,1753384268726,-1315.25,0.00024011,2]
[374625217,1753384268738,-522.07,0.00024011,2]
[374625218,1753384268747,-5162.43,0.00024011,2]
[374625219,1753384268758,-460.0,0.00024011,2]
[374625220,1753384268769,-946.41,0.00024011,2]
[374625221,1753384268779,-499.36,0.00024011,2]
[374625222,1753384268789,-738.92,0.00024011,2]
[374625223,1753384268802,-2648.97,0.00024011,2]
[374625224,1753384268811,-523.88,0.00024014,7]
[374625225,1753384268821,-450.0,0.00024016,2]
[374625226,1753384268830,-287.85286679,0.00024027,30]
[374625227,1753384268839,-500.0,0.00024029,2]
[374625228,1753384268848,-4306.35562987,0.00024038,10]
[374625229,1753384268858,-166.67,0.00024052,2]
[374625230,1753384268868,-4500.0,0.00024056,2]
[374625231,1753384268877,-151.0,0.00024059,7]
[374625232,1753384268886,-151.0,0.00024059,7]
[374625233,1753384268895,-164.352872,0.00024059,7]
[374625234,1753384268904,-150.0,0.000241,2]
[374625235,1753384268914,-700.0,0.00024106,2]
[374625236,1753384268923,-523.88,0.00024114,4]
[374625237,1753384268932,-151.183589,0.00024114,7]
[374625238,1753384268941,-700.0,0.00024147,2]
[374625239,1753384268950,-5888.0,0.00024161,2]
[374625240,1753384268959,-517.02,0.00024181,5]
[374625241,1753384268969,-700.0,0.00024189,2]
[374625242,1753384268978,-151.0,0.000242,7]
[374625243,1753384268987,-151.0,0.000242,7]
[374625244,1753384268997,-151.0,0.000242,7]
[374625245,1753384269006,-151.0,0.000242,7]
[374625246,1753384269015,-151.0,0.000242,7]
[374625247,1753384269025,-151.0,0.000242,7]
[374625248,1753384269034,-151.0,0.000242,7]
[374625249,1753384269044,-163.055195,0.000242,7]
[374625250,1753384269056,-202.24641,0.000242,7]
[374625251,1753384269065,-151.0,0.000242,7]
[374625252,1753384269076,-151.0,0.000242,7]
[374625253,1753384269086,-4306.35562987,0.0002421,10]
[374625254,1753384269095,-523.88,0.00024214,7]
[374625255,1753384269105,-211.147045,0.00024251,7]
[374625256,1753384269114,-211.147045,0.00024251,7]
[374625257,1753384269124,-256.317287,0.00024251,7]
[374625258,1753384269133,-256.317287,0.00024251,7]
[374625259,1753384269143,-153.701075,0.00024272,8]
[374625260,1753384269152,-500.0,0.00024273,2]
[374625261,1753384269162,-151.0,0.00024273,7]
[374625262,1753384269172,-250.355028,0.00024273,7]
[374625263,1753384269181,-271.0,0.00024284,2]
[374625264,1753384269191,-1245.07,0.00024285,2]
[374625265,1753384269200,-877.44,0.00024285,2]
[374625266,1753384269211,-849.243154,0.00024285,7]
[374625267,1753384269221,-864.25,0.00024285,2]
[374625268,1753384269230,-849.243154,0.00024285,7]
[374625269,1753384269240,-460.0,0.00024285,2]
[374625270,1753384269250,-553.18,0.00024285,2]
[374625271,1753384269259,-465.64,0.00024285,2]
[374625272,1753384269269,-1113.47,0.00024285,2]
[374625273,1753384269278,-461.31,0.00024285,2]
[374625274,1753384269287,-480.73,0.00024285,2]
[374625275,1753384269296,-460.0,0.00024285,2]
[374625276,1753384269308,-510.44,0.00024285,2]
[374625277,1753384269317,-460.0,0.00024285,2]
[374625278,1753384269327,-464.72,0.00024285,2]
[374625279,1753384269336,-920.18,0.00024285,2]
[374625280,1753384269345,-3132.28,0.00024285,2]
[374625281,1753384269354,-3148.8,0.00024285,2]
[374625282,1753384269363,-1325.74,0.00024285,2]
[374625283,1753384269372,-801.02,0.00024285,2]
[374625284,1753384269381,-1262.05,0.00024285,2]
[374625285,1753384269391,-610.09,0.00024285,2]
[374625286,1753384269399,-2655.55,0.00024285,2]